fUSD/lending_fUSD_20240905
["ID","MTS","AMOUNT","RATE_DAILY","PERIOD"]
[337217922,1725502274633,-1595.41732748,0.00014989,2]
[337217923,1725502274648,-416.47603396,0.00014989,2]
[337217924,1725502274660,-539.06283141,0.00014989,2]
[337217925,1725502274672,-254.76791717,0.00014989,2]
[337217926,1725502274682,-7530.58,0.00014989,2]
[337217927,1725502274943,-7530.59000001,0.00014989,2]
[337217928,1725502274962,-786.89,0.00014989,2]
[337217929,1725502274971,-1204.225374,0.00014989,2]
[337217930,1725502274981,-151.0,0.00014989,2]
[337217931,1725502274990,-1204.225374,0.00014989,2]
[337217932,1725502275001,-500.0,0.00014989,2]
[337217933,1725502275011,-2647.56,0.00014989,2]
[337217934,1725502275022,-2647.56,0.00014989,2]
[337217935,1725502275032,-2647.56,0.00014989,2]
[337217936,1725502275041,-2647.56,0.00014989,2]
[337217937,1725502275050,-2647.64993098,0.00014989,2]
[337217938,1725502275059,-500.0,0.00014989,2]
[337217939,1725502275069,-1781.56,0.00014989,2]
[337217940,1725502275078,-1781.56,0.00014989,2]
[337217941,1725502275087,-1781.56,0.00014989,2]
[337217942,1725502275097,-1781.56,0.00014989,2]
[337217943,1725502275107,-1781.68156426,0.00014989,2]
[337217944,1725502275117,-461.90560769,0.00014989,2]
[337217945,1725502275129,-394.50439231,0.00014989,2]
[337217946,1725502275138,-434.25329872,0.00014989,2]
[337217947,1725502275150,-140.19231068,0.00014989,2]
[337217948,1725502275159,-532.89,0.00014989,2]
[337217949,1725502275169,-532.89,0.00014989,2]
[337217950,1725502275178,-532.89,0.00014989,2]
[337217951,1725502275187,-532.89,0.00014989,2]
[337217952,1725502275197,-533.05133622,0.00014989,2]
[337217953,1725502275206,-500.0,0.00014989,2]
[337217954,1725502275215,-527.33921653,0.00014989,2]
[337217955,1725502275227,-879.01078347,0.00014989,2]
[337217956,1725502275237,-5.15566317,0.00014989,2]
[337217957,1725502275248,-1009.93433683,0.00014989,2]
[337217958,1725502275258,-638.25,0.00014989,2]
[337217959,1725502275267,-500.0,0.00014989,2]
[337217960,1725502275277,-500.0,0.00014989,2]
[337217961,1725502275287,-3124.45,0.00014989,2]
[337217962,1725502275297,-151.0,0.00014989,2]
[337217963,1725502275307,-151.0,0.00014989,2]
[337217964,1725502275316,-688.18,0.00014989,2]
[337217965,1725502275325,-151.0,0.00014989,2]
[337217966,1725502275334,-151.0,0.00014989,2]
[337217967,1725502275343,-151.0,0.00014989,2]
[337217968,1725502275354,-513.4,0.00014989,2]
[337217969,1725502275364,-151.0,0.00014989,2]
[337217970,1725502275373,-1651.21,0.00014989,2]
[337217971,1725502275383,-500.0,0.00014989,2]
[337217972,1725502275396,-500.0,0.00014989,2]
[337217973,1725502275405,-437.082983,0.00014989,2]
[337217974,1725502275415,-500.0,0.00014989,2]
[337217975,1725502275424,-151.0,0.00014989,2]
[337217976,1725502275435,-151.0,0.00014989,2]
[337217977,1725502275444,-437.082983,0.00014989,2]
[337217978,1725502275453,-500.0,0.00014989,2]
[337217979,1725502275464,-158.29906,0.00014989,2]
[337217980,1725502275475,-500.0,0.00014989,2]
[337217981,1725502275485,-158.29906,0.00014989,2]
[337217982,1725502275494,-1629.09,0.00014989,2]
[337217983,1725502275503,-500.0,0.00014989,2]
[337217984,1725502275513,-151.0,0.00014989,2]
[337217985,1725502275522,-151.0,0.00014989,2]
[337217986,1725502275531,-1019.26,0.00014989,2]
[337217987,1725502275540,-341.4274241,0.00014989,2]
[337217988,1725502275550,-623.61,0.00014989,2]
[337217989,1725502275558,-500.0,0.00014989,2]
[337217990,1725502275567,-500.0,0.00014989,2]
[337217991,1725502275576,-500.0,0.00014989,2]
[337217992,1725502275585,-686.71,0.00014989,2]
[337217993,1725502275594,-500.0,0.00014989,2]
[337217994,1725502275603,-1044.58,0.00014989,2]
[337217995,1725502275615,-905.2,0.00014989,2]
[337217996,1725502275625,-385.804629,0.00014989,2]
[337217997,1725502275634,-385.804629,0.00014989,2]
[337217998,1725502275643,-500.0,0.00014989,2]
[337217999,1725502275653,-1022.385217,0.00014989,2]
[337218000,1725502275663,-500.0,0.00014989,2]
[337218001,1725502275672,-1022.385217,0.00014989,2]
[337218002,1725502275682,-434.31749202,0.00014989,2]
[337218003,1725502275693,-385.804629,0.00014989,2]
[337218004,1725502275703,-500.0,0.00014989,2]
[337218005,1725502275712,-385.804629,0.00014989,2]
[337218006,1725502275725,-1022.385217,0.00014989,2]
[337218007,1725502275736,-1022.385217,0.00014989,2]
[337218008,1725502275745,-500.0,0.00014989,2]
[337218009,1725502275755,-161.04945009,0.00014989,2]
[337218010,1725502275764,-151.146567,0.00014989,2]
[337218011,1725502275773,-151.146567,0.00014989,2]
[337218012,1725502275783,-2099.49,0.00014989,2]
[337218013,1725502275794,-500.0,0.00014989,2]
[337218014,1725502275805,-500.0,0.00014989,2]
[337218015,1725502275815,-269.793234,0.00014989,2]
[337218016,1725502275826,-151.146567,0.00014989,2]
[337218017,1725502275837,-269.793234,0.00014989,2]
[337218018,1725502275849,-151.146567,0.00014989,2]
[337218019,1725502275862,-269.793234,0.00014989,2]
[337218020,1725502275873,-269.793234,0.00014989,2]
[337218021,1725502275882,-504.83222429,0.00014989,2]
[337218022,1725502275892,-500.0,0.00014989,2]
[337218023,1725502275902,-500.0,0.00014989,2]
[337218024,1725502275911,-575.18,0.00014989,2]
[337218025,1725502275920,-500.0,0.00014989,2]
[337218026,1725502275930,-1024.2,0.00014989,2]
[337218027,1725502275940,-500.0,0.00014989,2]
[337218028,1725502275949,-1493.11,0.00014989,2]
[337218029,1725502275958,-151.0,0.00014989,2]
[337218030,1725502275967,-212.215144,0.00014989,2]
[337218031,1725502275976,-500.0,0.00014989,2]
[337218032,1725502275985,-500.0,0.00014989,2]
[337218033,1725502275995,-621.25,0.00014989,2]
[337218034,1725502276004,-500.72773544,0.00014989,2]
[337218035,1725502276014,-500.0,0.00014989,2]
[337218036,1725502276023,-500.0,0.00014989,2]
[337218037,1725502276032,-500.0,0.00014989,2]
[337218038,1725502276041,-500.0,0.00014989,2]
[337218039,1725502276050,-959.150833,0.00014989,2]
[337218040,1725502276059,-500.0,0.00014989,2]
[337218041,1725502276069,-959.150833,0.00014989,2]
[337218042,1725502276078,-151.0,0.00014989,2]
[337218043,1725502276087,-151.0,0.00014989,2]
[337218044,1725502276097,-797.12,0.00014989,2]
[337218045,1725502276106,-959.150833,0.00014989,2]
[337218046,1725502276115,-959.150833,0.00014989,2]
[337218047,1725502276125,-151.0,0.00014989,2]
[337218048,1725502276134,-151.0,0.00014989,2]
[337218049,1725502276144,-561.36,0.00014989,2]
[337218050,1725502276154,-151.0,0.00014989,2]
[337218051,1725502276163,-151.0,0.00014989,2]
[337218052,1725502276172,-500.0,0.00014989,2]
[337218053,1725502276181,-500.0,0.00014989,2]
[337218054,1725502276191,-500.0,0.00014989,2]
[337218055,1725502276201,-151.0,0.00014989,2]
[337218056,1725502276210,-513.757015,0.00014989,2]
[337218057,1725502276219,-151.0,0.00014989,2]
[337218058,1725502276229,-513.757015,0.00014989,2]
[337218059,1725502276239,-513.757015,0.00014989,2]
[337218060,1725502276248,-513.757015,0.00014989,2]
[337218061,1725502276257,-151.0,0.00014989,2]
[337218062,1725502276267,-151.0,0.00014989,2]
[337218063,1725502276276,-500.0,0.00014989,2]
[337218064,1725502276285,-838.99,0.00014989,2]
[337218065,1725502276295,-500.0,0.00014989,2]
[337218066,1725502276305,-338.686791,0.00014989,2]
[337218067,1725502276314,-338.686791,0.00014989,2]
[337218068,1725502276323,-338.686791,0.00014989,2]
[337218069,1725502276333,-338.686791,0.00014989,2]
[337218070,1725502276342,-818.93,0.00014989,2]
[337218071,1725502276352,-151.0,0.00014989,2]
[337218072,1725502276362,-151.0,0.00014989,2]
[337218073,1725502276371,-664.81,0.00014989,2]
[337218074,1725502276381,-500.0,0.00014989,2]
[337218075,1725502276393,-194.375786,0.00014989,2]
[337218076,1725502276403,-500.0,0.00014989,2]
[337218077,1725502276412,-151.0,0.00014989,2]
[337218078,1725502276421,-151.0,0.00014989,2]
[337218079,1725502276431,-151.0,0.00014989,2]
[337218080,1725502276441,-151.0,0.00014989,2]
[337218081,1725502276450,-1145.4,0.00014989,2]
[337218082,1725502276460,-151.0,0.00014989,2]
[337218083,1725502276470,-151.0,0.00014989,2]
[337218084,1725502276480,-151.0,0.00014989,2]
[337218085,1725502276489,-151.0,0.00014989,2]
[337218086,1725502276499,-751.831863,0.00014989,2]
[337218087,1725502276508,-751.831863,0.00014989,2]
[337218088,1725502276517,-751.831863,0.00014989,2]
[337218089,1725502276527,-751.831863,0.00014989,2]
[337218090,1725502276537,-944.466039,0.00014989,2]
[337218091,1725502276547,-944.466039,0.00014989,2]
[337218092,1725502276557,-944.466039,0.00014989,2]
[337218093,1725502276567,-944.466039,0.00014989,2]
[337218094,1725502276576,-151.0,0.00014989,2]
[337218095,1725502276586,-151.0,0.00014989,2]
[337218096,1725502276597,-187.238598,0.00014989,2]
[337218097,1725502276607,-1978.45,0.0001499,2]
[337218098,1725502276616,-1978.45,0.0001499,2]
[337218099,1725502276627,-1978.45,0.0001499,2]
[337218100,1725502276637,-1978.45,0.0001499,2]
[337218101,1725502276648,-1978.49190554,0.0001499,2]
[337218102,1725502276658,-1109.11,0.0001499,2]
[337218103,1725502276667,-1109.11,0.0001499,2]
[337218104,1725502276676,-1109.11,0.0001499,2]
[337218105,1725502276685,-1109.11,0.0001499,2]
[337218106,1725502276695,-1109.14761123,0.0001499,2]
[337218107,1725502276704,-2276.04,0.0001499,2]
[337218108,1725502276714,-2276.04,0.0001499,2]
[337218109,1725502276726,-2276.04,0.0001499,2]
[337218110,1725502276735,-2276.04,0.0001499,2]
[337218111,1725502276745,-2276.15260778,0.0001499,2]
[337218112,1725502276755,-1727.37,0.0001499,2]
[337218113,1725502276765,-1727.37,0.0001499,2]
[337218114,1725502276774,-1727.37,0.0001499,2]
[337218115,1725502276784,-1727.37,0.0001499,2]
[337218116,1725502276794,-1727.58744408,0.0001499,2]
[337218117,1725502276804,-789.54,0.0001499,2]
[337218118,1725502276814,-789.54,0.0001499,2]
[337218119,1725502276824,-789.54,0.0001499,2]
[337218120,1725502276834,-789.54,0.0001499,2]
[337218121,1725502276843,-789.69810807,0.0001499,2]
[337218122,1725502276853,-1052.66,0.0001499,2]
[337218123,1725502276863,-1052.66,0.0001499,2]
[337218124,1725502276874,-1052.66,0.0001499,2]
[337218125,1725502276883,-1052.66,0.0001499,2]
[337218126,1725502276894,-1052.69767591,0.0001499,2]
[337218127,1725502276903,-1754.73,0.0001499,2]
[337218128,1725502276913,-1754.73,0.0001499,2]
[337218129,1725502276923,-1754.73,0.0001499,2]
[337218130,1725502276932,-1754.73,0.0001499,2]
[337218131,1725502276942,-1754.89257795,0.0001499,2]
[337218132,1725502276951,-727.65,0.0001499,2]
[337218133,1725502276961,-727.65,0.0001499,2]
[337218134,1725502276970,-727.65,0.0001499,2]
[337218135,1725502276980,-727.65,0.0001499,2]
[337218136,1725502276989,-727.85198927,0.0001499,2]
[337218137,1725502276998,-1419.74,0.0001499,2]
[337218138,1725502277008,-847.26,0.0001499,2]
[337218139,1725502277017,-1419.74,0.0001499,2]
[337218140,1725502277027,-847.26,0.0001499,2]
[337218141,1725502277036,-1419.74,0.0001499,2]
[337218142,1725502277045,-847.26,0.0001499,2]
[337218143,1725502277054,-1419.74,0.0001499,2]
[337218144,1725502277063,-847.26,0.0001499,2]
[337218145,1725502277072,-1419.76800369,0.0001499,2]
[337218146,1725502277081,-847.38712133,0.0001499,2]
[337218147,1725502277091,-2457.97,0.0001499,2]
[337218148,1725502277101,-2457.97,0.0001499,2]
[337218149,1725502277111,-972.62,0.0001499,2]
[337218150,1725502277121,-2457.97,0.0001499,2]
[337218151,1725502277130,-972.62,0.0001499,2]
[337218152,1725502277140,-2457.97,0.0001499,2]
[337218153,1725502277150,-972.62,0.0001499,2]
[337218154,1725502277159,-2458.03345304,0.0001499,2]
[337218155,1725502277168,-972.62,0.0001499,2]
[337218156,1725502277178,-972.71616514,0.0001499,2]
[337218157,1725502277187,-3191.96,0.0001499,2]
[337218158,1725502277198,-3191.96,0.0001499,2]
[337218159,1725502277209,-3191.96,0.0001499,2]
[337218160,1725502277219,-588.32,0.0001499,2]
[337218161,1725502277228,-3191.96,0.0001499,2]
[337218162,1725502277238,-588.32,0.0001499,2]
[337218163,1725502277249,-588.32,0.0001499,2]
[337218164,1725502277259,-588.32,0.0001499,2]
[337218165,1725502277327,-3192.04752456,0.0001499,2]
[337218166,1725502277337,-588.44692461,0.0001499,2]
[337218167,1725502277347,-1414.9,0.0001499,2]
[337218168,1725502277356,-1414.9,0.0001499,2]
[337218169,1725502277366,-1414.9,0.0001499,2]
[337218170,1725502277377,-1414.9,0.0001499,2]
[337218171,1725502277388,-1414.93,0.0001499,2]
[337218172,1725502277403,-532.82,0.0001499,2]
[337218173,1725502277412,-532.82,0.0001499,2]
[337218174,1725502277421,-532.82,0.0001499,2]
[337218175,1725502277431,-532.82,0.0001499,2]
[337218176,1725502277440,-532.9716628,0.0001499,2]
[337218177,1725502277449,-1296.77,0.0001499,2]
[337218178,1725502277458,-1296.77,0.0001499,2]
[337218179,1725502277469,-1296.77,0.0001499,2]
[337218180,1725502277479,-1296.77,0.0001499,2]
[337218181,1725502277488,-1296.77892134,0.0001499,2]
[337218182,1725502277497,-2242.12,0.0001499,2]
[337218183,1725502277506,-2242.12,0.0001499,2]
[337218184,1725502277516,-2242.12,0.0001499,2]
[337218185,1725502277526,-2242.12,0.0001499,2]
[337218186,1725502277536,-2242.2828465,0.0001499,2]
[337218187,1725502277547,-1449.38,0.0001499,2]
[337218188,1725502277557,-1449.38,0.0001499,2]
[337218189,1725502277567,-1449.38,0.0001499,2]
[337218190,1725502277576,-1449.38,0.0001499,2]
[337218191,1725502277585,-1449.50104179,0.0001499,2]
[337218192,1725502277594,-598.92,0.0001499,2]
[337218193,1725502277604,-598.92,0.0001499,2]
[337218194,1725502277614,-598.92,0.0001499,2]
[337218195,1725502277624,-598.92,0.0001499,2]
[337218196,1725502277635,-599.05714379,0.0001499,2]
[337218197,1725502277648,-582.22,0.0001499,2]
[337218198,1725502277657,-582.22,0.0001499,2]
[337218199,1725502277666,-582.22,0.0001499,2]
[337218200,1725502277675,-582.22,0.0001499,2]
[337218201,1725502277685,-582.23201974,0.0001499,2]
[337218202,1725502277694,-661.23,0.0001499,2]
[337218203,1725502277705,-661.23,0.0001499,2]
[337218204,1725502277715,-661.23,0.0001499,2]
[337218205,1725502277725,-661.23,0.0001499,2]
[337218206,1725502277734,-661.35437508,0.0001499,2]
[337218207,1725502277743,-1585.55,0.0001499,2]
[337218208,1725502277752,-1585.55,0.0001499,2]
[337218209,1725502277761,-1585.55,0.0001499,2]
[337218210,1725502277774,-1585.55,0.0001499,2]
[337218211,1725502277783,-1585.61618917,0.0001499,2]
[337218212,1725502277792,-2011.23,0.0001499,2]
[337218213,1725502277801,-2011.23,0.0001499,2]
[337218214,1725502277811,-2011.23,0.0001499,2]
[337218215,1725502277820,-2011.23,0.0001499,2]
[337218216,1725502277829,-2011.27113503,0.0001499,2]
[337218217,1725502277838,-785.27,0.0001499,2]
[337218218,1725502277847,-785.27,0.0001499,2]
[337218219,1725502277857,-785.27,0.0001499,2]
[337218220,1725502277866,-785.27,0.0001499,2]
[337218221,1725502277875,-785.27606677,0.0001499,2]
[337218222,1725502277884,-1748.6,0.0001499,2]
[337218223,1725502277894,-1748.6,0.0001499,2]
[337218224,1725502277903,-1748.6,0.0001499,2]
[337218225,1725502277912,-1748.6,0.0001499,2]
[337218226,1725502277922,-1748.78426746,0.0001499,2]
[337218227,1725502277931,-1555.38,0.0001499,2]
[337218228,1725502277940,-1555.38,0.0001499,2]
[337218229,1725502277949,-1555.38,0.0001499,2]
[337218230,1725502277959,-1555.38,0.0001499,2]
[337218231,1725502277968,-1555.52756337,0.0001499,2]
[337218232,1725502277977,-892.82,0.0001499,2]
[337218233,1725502277986,-892.82,0.0001499,2]
[337218234,1725502277996,-892.82,0.0001499,2]
[337218235,1725502278005,-892.82,0.0001499,2]
[337218236,1725502278014,-892.97164881,0.0001499,2]
[337218237,1725502278024,-2307.61,0.0001499,2]
[337218238,1725502278033,-2307.61,0.0001499,2]
[337218239,1725502278043,-2307.61,0.0001499,2]
[337218240,1725502278053,-2307.61,0.0001499,2]
[337218241,1725502278062,-2307.8004705,0.0001499,2]
[337218242,1725502278071,-2107.48,0.0001499,2]
[337218243,1725502278081,-2107.48,0.0001499,2]
[337218244,1725502278090,-2107.48,0.0001499,2]
[337218245,1725502278099,-2107.48,0.0001499,2]
[337218246,1725502278108,-2107.53905414,0.0001499,2]
[337218247,1725502278118,-201.0,0.0001499,2]
[337218248,1725502278127,-230.0,0.0001499,2]
[337218249,1725502278136,-201.0,0.0001499,2]
[337218250,1725502278145,-200.0,0.0001499,2]
[337218251,1725502278154,-1204.225374,0.0001499,2]
[337218252,1725502278163,-151.0,0.0001499,2]
[337218253,1725502278173,-1204.225374,0.0001499,2]
[337218254,1725502278182,-151.0,0.0001499,2]
[337218255,1725502278191,-151.0,0.0001499,2]
[337218256,1725502278200,-437.082983,0.0001499,2]
[337218257,1725502278210,-437.082983,0.0001499,2]
[337218258,1725502278219,-158.29906,0.0001499,2]
[337218259,1725502278228,-158.29906,0.0001499,2]
[337218260,1725502278238,-959.150833,0.0001499,2]
[337218261,1725502278247,-300.73910649,0.0001499,2]
[337218262,1725502278257,-151.0,0.0001499,2]
[337218263,1725502278266,-959.150833,0.0001499,2]
[337218264,1725502278276,-151.0,0.0001499,2]
[337218265,1725502278285,-151.0,0.0001499,2]
[337218266,1725502278293,-151.0,0.0001499,2]
[337218267,1725502278302,-513.757015,0.0001499,2]
[337218268,1725502278310,-513.757015,0.0001499,2]
[337218269,1725502278319,-151.0,0.0001499,2]
[337218270,1725502278329,-338.686791,0.0001499,2]
[337218271,1725502278339,-338.686791,0.0001499,2]
[337218272,1725502278349,-751.831863,0.0001499,2]
[337218273,1725502278359,-751.831863,0.0001499,2]
[337218274,1725502278368,-944.466039,0.0001499,2]
[337218275,1725502278377,-944.466039,0.0001499,2]
[337218276,1725502278388,-151.0,0.0001499,2]
[337218277,1725502278400,-172.254749,0.00014996,2]
[337218278,1725502278410,-546.52,0.00014996,2]
[337218279,1725502278419,-500.0,0.00014996,2]
[337218280,1725502278428,-1015.09,0.00014996,2]
[337218281,1725502278437,-638.25,0.00014996,2]
[337218282,1725502278446,-3124.45,0.00014996,2]
[337218283,1725502278455,-688.18,0.00014996,2]
[337218284,1725502278465,-1651.21,0.00014996,2]
[337218285,1725502278475,-500.0,0.00014996,2]
[337218286,1725502278484,-500.0,0.00014996,2]
[337218287,1725502278493,-1629.09,0.00014996,2]
[337218288,1725502278502,-500.0,0.00014996,2]
[337218289,1725502278511,-500.0,0.00014996,2]
[337218290,1725502278519,-500.0,0.00014996,2]
[337218291,1725502278529,-686.71,0.00014996,2]
[337218292,1725502278538,-500.0,0.00014996,2]
[337218293,1725502278547,-905.2,0.00014996,2]
[337218294,1725502278556,-500.0,0.00014996,2]
[337218295,1725502278565,-500.0,0.00014996,2]
[337218296,1725502278575,-500.0,0.00014996,2]
[337218297,1725502278584,-500.0,0.00014996,2]
[337218298,1725502278593,-2099.49,0.00014996,2]
[337218299,1725502278602,-500.0,0.00014996,2]
[337218300,1725502278611,-500.0,0.00014996,2]
[337218301,1725502278621,-500.0,0.00014996,2]
[337218302,1725502278630,-575.18,0.00014996,2]
[337218303,1725502278639,-500.0,0.00014996,2]
[337218304,1725502278651,-1024.2,0.00014996,2]
[337218305,1725502278660,-500.0,0.00014996,2]
[337218306,1725502278669,-500.0,0.00014996,2]
[337218307,1725502278678,-500.0,0.00014996,2]
[337218308,1725502278687,-500.0,0.00014996,2]
[337218309,1725502278697,-500.0,0.00014996,2]
[337218310,1725502278706,-500.0,0.00014996,2]
[337218311,1725502278715,-500.0,0.00014996,2]
[337218312,1725502278725,-500.0,0.00014996,2]
[337218313,1725502278735,-797.12,0.00014996,2]
[337218314,1725502278744,-561.36,0.00014996,2]
[337218315,1725502278753,-500.0,0.00014996,2]
[337218316,1725502278762,-500.0,0.00014996,2]
[337218317,1725502278771,-627.76801874,0.00014996,2]
[337218318,1725502278780,-500.0,0.00014996,2]
[337218319,1725502278789,-838.99,0.00014996,2]
[337218320,1725502278798,-500.0,0.00014996,2]
[337218321,1725502278807,-818.93,0.00014996,2]
[337218322,1725502278816,-664.81,0.00014996,2]
[337218323,1725502278825,-500.0,0.00014996,2]
[337218324,1725502278834,-500.0,0.00014996,2]
[337218325,1725502278843,-1145.4,0.00014996,2]
[337218326,1725502278851,-808.39,0.00014997,2]
[337218327,1725502278861,-500.0,0.00014997,2]
[337218328,1725502278871,-759.98,0.00014997,2]
[337218329,1725502278879,-500.0,0.00014997,2]
[337218330,1725502278889,-500.0,0.00014997,2]
[337218331,1725502278899,-4524.09,0.00014997,2]
[337218332,1725502278907,-1178.57,0.00014997,2]
[337218333,1725502278917,-3654.15,0.00014997,2]
[337218334,1725502278927,-935.21,0.00014997,2]
[337218335,1725502278937,-754.77,0.00014997,2]
[337218336,1725502278946,-1514.09,0.00014997,2]
[337218337,1725502278955,-3075.33,0.00014997,2]
[337218338,1725502278965,-1162.24,0.00014997,2]
[337218339,1725502278974,-1927.03,0.00014997,2]
[337218340,1725502278984,-500.0,0.00014997,2]
[337218341,1725502278994,-500.0,0.00014997,2]
[337218342,1725502279003,-172.254749,0.00014997,2]
[337218343,1725502279012,-2802.27,0.00014997,2]
[337218344,1725502279021,-2802.27,0.00014997,2]
[337218345,1725502279030,-2802.27,0.00014997,2]
[337218346,1725502279039,-2802.27,0.00014997,2]
[337218347,1725502279048,-2802.40724675,0.00014997,2]
[337218348,1725502279058,-652.69,0.00014997,2]
[337218349,1725502279067,-652.69,0.00014997,2]
[337218350,1725502279076,-652.69,0.00014997,2]
[337218351,1725502279085,-652.69,0.00014997,2]
[337218352,1725502279094,-652.84403892,0.00014997,2]
[337218353,1725502279104,-2751.52,0.00014997,2]
[337218354,1725502279113,-2751.52,0.00014997,2]
[337218355,1725502279122,-2751.52,0.00014997,2]
[337218356,1725502279131,-2751.52,0.00014997,2]
[337218357,1725502279140,-2751.71458189,0.00014997,2]
[337218358,1725502279150,-1016.74,0.00014997,2]
[337218359,1725502279159,-3672.75,0.00014997,2]
[337218360,1725502279168,-3672.75,0.00014997,2]
[337218361,1725502279177,-3672.75,0.00014997,2]
[337218362,1725502279187,-3672.75,0.00014997,2]
[337218363,1725502279196,-3672.92029486,0.00014997,2]
[337218364,1725502279205,-1524.3,0.00014997,2]
[337218365,1725502279215,-1524.3,0.00014997,2]
[337218366,1725502279224,-1524.3,0.00014997,2]
[337218367,1725502279234,-1524.3,0.00014997,2]
[337218368,1725502279243,-1524.32867519,0.00014997,2]
[337218369,1725502279253,-8066.97,0.00014997,2]
[337218370,1725502279262,-5714.32,0.00014997,2]
[337218371,1725502279272,-8553.38,0.00014997,2]
[337218372,1725502279281,-500.0,0.00014997,2]
[337218373,1725502279290,-500.0,0.00014997,2]
[337218374,1725502279299,-470.07284451,0.00014997,2]
[337218375,1725502279309,-771.03,0.00014997,2]
[337218376,1725502279318,-771.03,0.00014997,2]
[337218377,1725502279327,-771.03,0.00014997,2]
[337218378,1725502279336,-771.03,0.00014997,2]
[337218379,1725502279345,-771.09934992,0.00014997,2]
[337218380,1725502279354,-3230.85,0.00014997,2]
[337218381,1725502279363,-3230.85,0.00014997,2]
[337218382,1725502279373,-3230.85,0.00014997,2]
[337218383,1725502279382,-3230.85,0.00014997,2]
[337218384,1725502279394,-3231.08371572,0.00014997,2]
[337218385,1725502279404,-890.6,0.00014997,2]
[337218386,1725502279413,-890.6,0.00014997,2]
[337218387,1725502279423,-890.6,0.00014997,2]
[337218388,1725502279433,-890.6,0.00014997,2]
[337218389,1725502279442,-890.80187838,0.00014997,2]
[337218390,1725502279451,-685.43,0.00014997,2]
[337218391,1725502279462,-685.43,0.00014997,2]
[337218392,1725502279471,-685.43,0.00014997,2]
[337218393,1725502279480,-685.43,0.00014997,2]
[337218394,1725502279489,-685.62996052,0.00014997,2]
[337218395,1725502279498,-1112.21,0.00014997,2]
[337218396,1725502279507,-1112.21,0.00014997,2]
[337218397,1725502279516,-1112.21,0.00014997,2]
[337218398,1725502279525,-1112.21,0.00014997,2]
[337218399,1725502279534,-1112.38657955,0.00014997,2]
[337218400,1725502279543,-500.0,0.00014997,2]
[337218401,1725502279552,-158.30026737,0.00014997,2]
[337218402,1725502279561,-538.4156885,0.00014997,2]
[337218403,1725502279570,-546.52,0.00014997,2]
[337218404,1725502279579,-151.0,0.00014997,2]
[337218405,1725502279588,-500.0,0.00014997,2]
[337218406,1725502279597,-638.25,0.00014997,2]
[337218407,1725502279606,-151.0,0.00014997,2]
[337218408,1725502279615,-688.18,0.00014997,2]
[337218409,1725502279625,-151.0,0.00014997,2]
[337218410,1725502279634,-151.0,0.00014997,2]
[337218411,1725502279643,-1629.09,0.00014997,2]
[337218412,1725502279652,-151.0,0.00014997,2]
[337218413,1725502279661,-385.804629,0.00014997,2]
[337218414,1725502279671,-1022.385217,0.00014997,2]
[337218415,1725502279680,-385.804629,0.00014997,2]
[337218416,1725502279689,-1022.385217,0.00014997,2]
[337218417,1725502279698,-151.146567,0.00014997,2]
[337218418,1725502279708,-502.66879819,0.00014997,2]
[337218419,1725502279717,-269.793234,0.00014997,2]
[337218420,1725502279726,-151.146567,0.00014997,2]
[337218421,1725502279736,-269.793234,0.00014997,2]